bitfinex/quotes_BTCUSD_20240828
["timestamp","ask_amount","ask_price","bid_price","bid_amount"]
[1724838312313,0.5043,59571.0,59570.0,2.19799483]
[1724838312519,0.5053,59571.0,59570.0,2.30714118]
[1724838312746,0.5053,59571.0,59570.0,2.20699483]
[1724838312952,0.5053,59571.0,59570.0,2.20698932]
[1724838313159,0.5053,59571.0,59570.0,2.30711402]
[1724838313365,0.5043,59571.0,59570.0,2.30511402]
[1724838314076,0.5053,59571.0,59570.0,2.33216361]
[1724838314282,0.5053,59571.0,59570.0,2.23203891]
[1724838314997,0.6063,59571.0,59570.0,0.30669342]
[1724838315118,0.689,59571.0,59570.0,0.30669342]
[1724838315325,0.689,59571.0,59570.0,0.6245078]
[1724838315531,0.72290777,59571.0,59570.0,0.6245078]
[1724838315714,0.72290777,59571.0,59570.0,0.9602468]
[1724838316117,0.72290777,59571.0,59570.0,0.6245078]
[1724838316528,0.72190777,59571.0,59570.0,0.6135078]
[1724838316727,0.72190777,59571.0,59570.0,0.6235078]
[1724838316929,0.72290777,59571.0,59570.0,0.6235078]
[1724838317563,0.72290777,59571.0,59570.0,0.6145078]
[1724838317564,0.72190777,59571.0,59570.0,0.6145078]
[1724838317786,0.72290777,59571.0,59570.0,0.6235078]
[1724838318329,0.69658822,59571.0,59570.0,0.6235078]
[1724838318555,0.69658822,59571.0,59570.0,0.2877688]
[1724838319384,0.69658822,59571.0,59570.0,0.1198998]
[1724838319785,0.69658822,59571.0,59570.0,0.0198998]
[1724838319978,0.69658822,59571.0,59570.0,0.1198998]
[1724838320390,0.69658822,59571.0,59570.0,0.2877688]
[1724838320552,0.51288822,59571.0,59570.0,0.6235078]
[1724838322968,0.51288822,59571.0,59570.0,0.9592468]
[1724838323206,0.51288822,59571.0,59570.0,1.61197227]
[1724838323415,0.51288822,59571.0,59570.0,1.66205053]
[1724838323416,0.5053,59571.0,59570.0,1.66205053]
[1724838323676,0.5053,59571.0,59570.0,1.59402271]
[1724838323891,0.51289232,59571.0,59570.0,1.61197584]
[1724838324116,0.5053,59571.0,59570.0,1.61197584]
[1724838324362,0.51289232,59571.0,59570.0,2.39536903]
[1724838324802,0.53161877,59571.0,59570.0,2.39536903]
[1724838325058,0.53161877,59571.0,59570.0,2.39544533]
[1724838325282,0.53721109,59571.0,59570.0,2.00390924]
[1724838325493,0.53061877,59571.0,59570.0,2.01790924]
[1724838325711,0.53921109,59571.0,59570.0,2.02790924]
[1724838326369,0.53921109,59571.0,59570.0,2.40043376]
[1724838326598,0.53921109,59571.0,59570.0,2.02789766]
[1724838326806,0.53161877,59571.0,59570.0,2.00284028]
[1724838327017,0.53921109,59571.0,59570.0,2.00283924]
[1724838327253,0.53921109,59571.0,59570.0,1.98488611]
[1724838327479,0.53921109,59571.0,59570.0,2.00283858]
[1724838327695,0.53921109,59571.0,59570.0,1.95271418]
[1724838327903,0.53921109,59571.0,59570.0,2.00283532]
[1724838329493,0.53921109,59571.0,59570.0,1.95271418]
[1724838329912,0.53161877,59571.0,59570.0,1.95271418]
[1724838330375,0.53921109,59571.0,59570.0,1.95271418]
[1724838330604,0.53921109,59571.0,59570.0,1.9527092]
[1724838330856,0.53921109,59571.0,59570.0,2.00283034]
[1724838331095,0.5053,59571.0,59570.0,1.95270673]
[1724838331320,0.5053,59571.0,59570.0,2.00282787]
[1724838331524,0.51289232,59571.0,59570.0,2.00282787]
[1724838331700,0.5053,59571.0,59570.0,2.00282787]
[1724838331904,0.51289232,59571.0,59570.0,2.00282787]
[1724838332264,0.51289232,59571.0,59570.0,1.95270673]
[1724838332468,0.51289232,59571.0,59570.0,2.00282787]
[1724838332669,0.5053,59571.0,59570.0,1.95270673]
[1724838333124,0.51289232,59571.0,59570.0,1.95270673]
[1724838333321,0.5053,59571.0,59570.0,1.95270673]
[1724838333475,0.51289232,59571.0,59570.0,1.95270673]
[1724838334093,0.51289232,59571.0,59570.0,1.98488285]
[1724838334299,0.51289232,59571.0,59570.0,2.00282619]
[1724838334487,0.5053,59571.0,59570.0,2.00282619]
[1724838334687,0.5053,59571.0,59570.0,1.95270505]
[1724838334888,0.51290733,59571.0,59570.0,1.95270505]
[1724838337448,0.51290733,59571.0,59570.0,1.93476171]
[1724838337660,0.51290733,59571.0,59570.0,1.95269511]
[1724838339994,0.51290733,59571.0,59570.0,2.42533601]
[1724838340243,0.5053,59571.0,59570.0,2.3252141]
[1724838340448,0.5053,59571.0,59570.0,2.42533601]
[1724838340868,0.5053,59571.0,59570.0,2.3252141]
[1724838341088,0.5053,59571.0,59570.0,2.3072807]
[1724838341303,0.5053,59571.0,59570.0,2.45036532]
[1724838342711,0.5053,59571.0,59570.0,2.32521293]
[1724838343139,0.5053,59571.0,59570.0,2.3252113]
[1724838343342,0.5053,59571.0,59570.0,2.44473597]
[1724838344140,0.5053,59571.0,59570.0,2.42680537]
[1724838344388,0.5053,59571.0,59570.0,2.44473686]
[1724838344590,0.5053,59571.0,59570.0,2.31961219]
[1724838344796,0.5053,59571.0,59570.0,2.31959444]
[1724838345129,0.5053,59571.0,59570.0,2.44472174]
[1724838345326,0.5053,59571.0,59570.0,2.65533344]
[1724838346165,0.000818,59584.0,59583.0,1.698397]
[1724838346365,0.000818,59584.0,59583.0,2.57401997]
[1724838346580,0.000818,59584.0,59583.0,2.79903349]
[1724838346781,0.000818,59584.0,59583.0,2.6740059]
[1724838347305,0.000818,59584.0,59583.0,2.65709646]
[1724838347921,0.001818,59584.0,59583.0,2.67109646]
[1724838348123,0.001818,59584.0,59583.0,2.68509646]
[1724838348320,0.001818,59584.0,59583.0,2.78493828]
[1724838348552,0.001818,59584.0,59583.0,2.03626926]
[1724838348960,0.001818,59584.0,59583.0,1.9613654]
[1724838349132,0.001818,59584.0,59583.0,2.01128838]
[1724838349363,0.001818,59584.0,59583.0,2.2970314]
[1724838349567,0.001818,59584.0,59583.0,1.9613654]
[1724838350165,0.001818,59584.0,59583.0,2.01127225]
[1724838351032,0.001818,59584.0,59583.0,1.84431089]
[1724838351247,0.001818,59584.0,59583.0,1.302831]
[1724838351456,0.001818,59584.0,59583.0,1.32074858]
[1724838351629,0.001818,59584.0,59583.0,1.43778549]
[1724838351966,0.001818,59584.0,59583.0,1.32074858]
[1724838352176,0.001818,59584.0,59583.0,1.30674858]
[1724838352615,0.001818,59584.0,59583.0,1.32074858]
[1724838353773,0.000818,59584.0,59583.0,1.30674858]
[1724838354197,0.000818,59584.0,59583.0,1.32074858]
[1724838354411,0.000818,59584.0,59583.0,1.32074996]
[1724838356303,0.000818,59584.0,59583.0,1.302831]
[1724838356721,0.000818,59584.0,59583.0,1.32074809]
[1724838356906,0.167788,59599.0,59583.0,1.32074809]
[1724838356907,0.1855,59607.0,59594.0,0.0823]
[1724838357135,0.1855,59607.0,59599.0,0.503364]
[1724838357338,0.1855,59607.0,59599.0,1.610092]
[1724838357963,0.02712696,59600.0,59599.0,1.610092]
[1724838358334,0.02712696,59600.0,59599.0,1.713092]
[1724838358561,0.02712696,59600.0,59599.0,1.722092]
[1724838359726,0.02712696,59600.0,59599.0,1.730092]
[1724838360673,0.02712696,59600.0,59599.0,1.627092]
[1724838360891,0.02712696,59600.0,59599.0,1.291516]
[1724838362013,0.02712696,59600.0,59599.0,1.627092]
[1724838364063,0.02712696,59600.0,59599.0,1.291516]
[1724838364321,0.21872696,59600.0,59599.0,1.291516]
[1724838364875,0.02712696,59600.0,59599.0,1.291516]
[1724838366037,0.02712696,59600.0,59599.0,2.1311425]
[1724838369221,0.02712696,59600.0,59599.0,2.14706983]
[1724838369691,0.02712696,59600.0,59599.0,2.21432483]
[1724838374308,0.02712696,59600.0,59599.0,1.92177433]
[1724838382222,0.02712696,59600.0,59599.0,1.93741743]
[1724838382418,0.02712696,59600.0,59599.0,1.94993191]
[1724838385137,0.02712696,59600.0,59599.0,1.93741729]
[1724838385546,0.02712696,59600.0,59599.0,1.94993166]
[1724838385957,0.02712696,59600.0,59599.0,2.06687244]
[1724838388448,0.02712696,59600.0,59599.0,2.05122948]
[1724838388605,0.02712696,59600.0,59599.0,2.06687241]
[1724838388810,0.02712696,59600.0,59599.0,2.05122948]
[1724838389224,0.02712696,59600.0,59599.0,2.10409819]
[1724838389444,0.02712696,59600.0,59599.0,2.11661253]
[1724838390208,0.02712696,59600.0,59599.0,2.14148261]
[1724838391270,0.02712696,59600.0,59599.0,2.43917598]
[1724838392052,0.02712696,59600.0,59599.0,2.41101871]
[1724838392396,0.02712696,59600.0,59599.0,2.53866681]
[1724838392749,0.02712696,59600.0,59599.0,2.55431559]
[1724838393578,0.340449,59622.0,59599.0,2.55431559]
[1724838393579,0.1978,59612.0,59611.0,1.174278]
[1724838393818,0.1978,59612.0,59611.0,1.39121878]
[1724838397539,0.1978,59612.0,59611.0,1.40716367]
[1724838397942,0.1978,59612.0,59611.0,1.29022289]
[1724838401247,0.198618,59612.0,59611.0,1.29022289]
[1724838401473,0.000818,59612.0,59611.0,1.74267167]
[1724838401932,0.000818,59612.0,59611.0,1.79257144]
[1724838402157,0.000818,59612.0,59611.0,2.11493911]
[1724838402409,0.000818,59612.0,59611.0,2.21473866]
[1724838402646,0.000818,59612.0,59611.0,2.21485488]
[1724838402850,0.000818,59612.0,59611.0,2.19890999]
[1724838403002,0.000818,59612.0,59611.0,2.08196921]
[1724838403208,0.115818,59612.0,59611.0,1.98205056]
[1724838403403,0.115818,59612.0,59611.0,2.08196546]
[1724838403629,0.115818,59612.0,59611.0,1.98205056]
[1724838404010,0.115818,59612.0,59611.0,1.98305056]
[1724838404229,0.115818,59612.0,59611.0,2.10794887]
[1724838404429,0.115818,59612.0,59611.0,1.98405056]
[1724838405227,0.115818,59612.0,59611.0,2.10894887]
[1724838405588,0.115818,59612.0,59611.0,1.98405056]
[1724838407247,0.115818,59612.0,59611.0,1.98404551]
[1724838407693,0.115818,59612.0,59611.0,2.10893754]
[1724838408317,0.115818,59612.0,59611.0,1.98404551]
[1724838408532,0.115818,59612.0,59611.0,2.10893754]
[1724838408913,0.000818,59612.0,59611.0,2.22587832]
[1724838409725,0.000818,59612.0,59611.0,2.10098629]
[1724838410467,0.000818,59612.0,59611.0,2.22587832]
[1724838410675,0.000818,59612.0,59611.0,2.10893754]
[1724838410870,0.000818,59612.0,59611.0,1.64853751]
[1724838410871,0.208118,59612.0,59611.0,1.64853751]
[1724838411099,0.208118,59612.0,59611.0,1.74843767]
[1724838411454,0.208118,59612.0,59611.0,1.276278]
[1724838411657,0.208118,59612.0,59611.0,1.274278]
[1724838412017,0.208118,59612.0,59611.0,1.347527]
[1724838412283,0.208118,59612.0,59611.0,1.353527]
[1724838413593,0.208118,59612.0,59611.0,1.47046778]
[1724838416617,0.000818,59612.0,59611.0,2.00847578]
[1724838417343,0.000818,59612.0,59611.0,2.00247578]
[1724838417643,0.000818,59612.0,59611.0,1.99647578]
[1724838417856,0.000818,59612.0,59611.0,2.01147578]
[1724838418208,0.000818,59612.0,59611.0,2.38372764]
[1724838419581,0.000818,59612.0,59611.0,2.18122764]
[1724838426414,0.000818,59612.0,59611.0,2.18122763]
[1724838430932,0.000818,59612.0,59611.0,2.06428685]
[1724838431144,0.118018,59612.0,59611.0,2.29899472]
[1724838431383,0.118018,59612.0,59611.0,2.29900623]
[1724838431620,0.118018,59612.0,59611.0,2.29100623]
[1724838432035,0.118018,59612.0,59611.0,2.30000623]
[1724838432246,0.000818,59612.0,59611.0,2.29300623]
[1724838432975,0.000818,59612.0,59611.0,2.17523706]
[1724838433223,0.000818,59612.0,59611.0,2.32599144]
[1724838434992,0.000818,59612.0,59611.0,2.20905066]
[1724838435436,0.000818,59612.0,59611.0,2.32599144]
[1724838436738,0.000818,59612.0,59611.0,2.3080967]
[1724838437145,0.000818,59612.0,59611.0,2.32598637]
[1724838437577,0.000818,59612.0,59611.0,2.20112673]
[1724838439735,0.000818,59612.0,59611.0,2.74123473]
[1724838439930,0.02630306,59614.0,59613.0,2.054833]
[1724838440108,0.02630306,59614.0,59613.0,3.10609052]
[1724838440306,0.02630306,59614.0,59613.0,2.68492473]
[1724838440513,0.000818,59624.0,59623.0,1.174043]
[1724838440709,0.000818,59624.0,59623.0,2.19859113]
[1724838440938,0.000818,59624.0,59623.0,2.21647097]
[1724838441140,0.000818,59624.0,59623.0,2.21637788]
[1724838441910,0.000818,59624.0,59623.0,2.23037788]
[1724838442313,0.000818,59624.0,59623.0,2.13050199]
[1724838443292,0.000818,59624.0,59623.0,2.1134371]
[1724838443496,0.000818,59624.0,59623.0,2.15240607]
[1724838443669,0.11177957,59627.0,59626.0,1.509408]
[1724838443892,0.11177957,59627.0,59626.0,2.07430799]
[1724838444100,0.11177957,59627.0,59626.0,1.29186384]
[1724838444328,0.11177957,59627.0,59626.0,1.29185658]
[1724838444698,0.11177957,59627.0,59626.0,1.34174929]
[1724838444877,0.11177957,59627.0,59626.0,1.35274929]
[1724838445081,0.11177957,59627.0,59626.0,1.36474929]
[1724838445318,0.11177957,59627.0,59626.0,1.31485658]
[1724838445603,0.11177957,59627.0,59626.0,1.36474929]
[1724838445803,0.02629633,59629.0,59628.0,0.83853]
[1724838445934,0.02629633,59629.0,59628.0,1.00629529]
[1724838446311,0.02629633,59629.0,59628.0,1.34170729]
[1724838446534,0.02629633,59629.0,59628.0,1.29181458]
[1724838447091,0.02629633,59629.0,59628.0,1.30181458]
[1724838447435,0.02629633,59629.0,59628.0,1.29181458]
[1724838447841,0.02629633,59629.0,59628.0,1.30081458]
[1724838448415,0.02629633,59629.0,59628.0,1.31281458]
[1724838448622,0.02629633,59629.0,59628.0,1.30081458]
[1724838449247,0.02629633,59629.0,59628.0,1.29181458]
[1724838449819,0.03410964,59629.0,59628.0,1.30381458]
[1724838450129,0.03410964,59629.0,59628.0,1.31581458]
[1724838450334,0.03410964,59629.0,59628.0,1.30381458]
[1724838450746,0.03410964,59629.0,59628.0,1.31481458]
[1724838451677,0.03410964,59629.0,59628.0,2.3197178]
[1724838451910,0.02629633,59629.0,59628.0,2.21998824]
[1724838452126,0.02629633,59629.0,59628.0,2.2947647]
[1724838452615,0.02629633,59629.0,59628.0,1.9115892]
[1724838452814,0.02629633,59629.0,59628.0,1.9255892]
[1724838453364,0.02629633,59629.0,59628.0,1.85082838]
[1724838453565,0.02629633,59629.0,59628.0,2.22297716]
[1724838453941,0.02629633,59629.0,59628.0,2.21097716]
[1724838454303,0.02629633,59629.0,59628.0,2.22497716]
[1724838454504,0.02629633,59629.0,59628.0,2.32461536]
[1724838456490,1e-08,59629.0,59628.0,2.22497716]
[1724838456666,1e-08,59629.0,59628.0,2.35463911]
[1724838456871,0.05818,59631.0,59630.0,1.509304]
[1724838457052,0.05818,59631.0,59630.0,2.40942681]
[1724838457258,0.05818,59631.0,59630.0,2.15421881]
[1724838457454,0.05818,59631.0,59630.0,2.07952016]
[1724838457679,0.05818,59631.0,59630.0,1.62717838]
[1724838457922,0.05818,59631.0,59630.0,1.67697488]
[1724838458273,0.05812886,59631.0,59630.0,1.68897488]
[1724838458713,0.05812886,59631.0,59630.0,1.70197488]
[1724838459174,0.05812886,59631.0,59630.0,1.81697487]
[1724838459383,0.05812886,59631.0,59630.0,1.74930399]
[1724838459609,0.05812886,59631.0,59630.0,1.76717487]
[1724838459836,0.05812886,59631.0,59630.0,1.74217487]
[1724838460063,0.05812886,59631.0,59630.0,1.75517487]
[1724838460270,0.05812886,59631.0,59630.0,1.80497137]
[1724838460897,0.05812886,59631.0,59630.0,1.79197137]
[1724838461329,0.05812886,59631.0,59630.0,1.81997137]
[1724838461589,0.05812886,59631.0,59630.0,1.80597137]
[1724838462092,0.05812886,59631.0,59630.0,1.81997137]
[1724838462327,0.05812886,59631.0,59630.0,1.83087352]
[1724838463274,0.05812886,59631.0,59630.0,1.84487352]
[1724838463491,0.05812886,59631.0,59630.0,1.83087352]
[1724838463711,0.05812886,59631.0,59630.0,1.84487352]
[1724838464452,0.05812886,59631.0,59630.0,1.77017487]
[1724838464693,0.05812886,59631.0,59630.0,1.75617487]
[1724838464914,0.05812886,59631.0,59630.0,1.77016814]
[1724838466565,0.05812886,59631.0,59630.0,2.21690508]
[1724838466786,0.05812886,59631.0,59630.0,2.14227792]
[1724838467450,0.05812886,59631.0,59630.0,2.2168936]
[1724838467661,0.05812886,59631.0,59630.0,2.1068936]
[1724838467874,0.05812886,59631.0,59630.0,2.0928936]
[1724838468097,0.05812886,59631.0,59630.0,2.1068936]
[1724838468316,0.05812886,59631.0,59630.0,2.02727793]
[1724838468771,0.05812886,59631.0,59630.0,2.10189109]
[1724838468992,0.26242886,59631.0,59630.0,0.98636617]
[1724838469531,0.27027015,59631.0,59630.0,1.30776717]
[1724838469764,0.27027015,59631.0,59630.0,1.32176717]
[1724838470007,0.26242886,59631.0,59630.0,1.303903]
[1724838470223,0.26242886,59631.0,59630.0,1.30577256]
[1724838470224,0.27027371,59631.0,59630.0,1.30577256]
[1724838470448,0.27027371,59631.0,59630.0,1.289903]
[1724838470685,0.27027371,59631.0,59630.0,1.31977256]
[1724838471360,0.27027371,59631.0,59630.0,1.29377256]
[1724838471578,0.27027371,59631.0,59630.0,1.30777256]
[1724838472080,0.27027371,59631.0,59630.0,1.29377256]
[1724838472283,0.27027371,59631.0,59630.0,1.30777256]
[1724838472492,0.27027371,59631.0,59630.0,1.30577256]
[1724838472706,0.27027371,59631.0,59630.0,1.31877256]
[1724838472943,0.27027371,59631.0,59630.0,1.31677256]
[1724838473167,0.27027371,59631.0,59630.0,1.30777256]
[1724838473393,0.27027371,59631.0,59630.0,1.31977256]
[1724838474767,0.06597371,59631.0,59630.0,1.77711433]
[1724838475193,0.03451963,59632.0,59631.0,0.51009399]
[1724838475403,0.03451963,59632.0,59631.0,0.96335955]
[1724838475628,0.03451963,59632.0,59631.0,1.29675555]
[1724838475884,0.03451963,59632.0,59631.0,1.63415155]
[1724838476323,0.03451963,59632.0,59631.0,1.63215155]
[1724838476510,0.03451963,59632.0,59631.0,1.63415155]
[1724838476742,0.03451963,59632.0,59631.0,1.64615155]
[1724838477233,0.03451963,59632.0,59631.0,1.64115156]
[1724838477452,0.03451963,59632.0,59631.0,1.68889717]
[1724838477663,0.03451963,59632.0,59631.0,1.69089717]
[1724838477863,0.03451963,59632.0,59631.0,1.68889717]
[1724838478343,0.03451963,59632.0,59631.0,1.70289717]
[1724838479177,0.03451963,59632.0,59631.0,1.71841531]
[1724838479403,0.03451963,59632.0,59631.0,1.72041531]
[1724838479624,0.03451963,59632.0,59631.0,1.7254153]
[1724838479824,0.03451963,59632.0,59631.0,1.7234153]
[1724838480038,0.03451963,59632.0,59631.0,1.72344016]
[1724838480473,0.03451963,59632.0,59631.0,1.66166969]
[1724838480905,0.03451963,59632.0,59631.0,1.99706569]
[1724838481123,0.03451963,59632.0,59631.0,1.82700014]
[1724838481330,0.03451963,59632.0,59631.0,2.23097474]
[1724838481536,0.03451963,59632.0,59631.0,2.66595092]
[1724838481950,0.03451963,59632.0,59631.0,2.69244868]
[1724838482163,0.03451963,59632.0,59631.0,2.67844868]
[1724838482589,0.03451963,59632.0,59631.0,2.5788611]
[1724838483234,0.03451963,59632.0,59631.0,2.54699847]
[1724838483469,0.03451963,59632.0,59631.0,2.56635765]
[1724838483668,0.008228,59632.0,59631.0,2.24345385]
[1724838484201,0.008228,59632.0,59631.0,2.25745385]
[1724838484401,0.008228,59632.0,59631.0,2.3819931]
[1724838484774,0.008228,59632.0,59631.0,2.7173891]
[1724838485189,0.008228,59632.0,59631.0,2.59284985]
[1724838486015,0.008228,59632.0,59631.0,2.59784985]
[1724838486661,0.008228,59632.0,59631.0,2.57998828]
[1724838486881,0.008228,59632.0,59631.0,2.56749608]
[1724838487092,0.008228,59632.0,59631.0,2.59049608]
[1724838487314,0.008228,59632.0,59631.0,2.74003316]
[1724838487514,0.008228,59632.0,59631.0,2.59049608]
[1724838487717,0.008228,59632.0,59631.0,2.60835647]
[1724838487844,0.008228,59632.0,59631.0,2.7578924]
[1724838488052,0.008228,59632.0,59631.0,2.75789318]
[1724838490600,1e-08,59634.0,59633.0,2.30946872]
[1724838490804,1e-08,59634.0,59633.0,2.64485272]
[1724838491663,1e-08,59634.0,59633.0,2.66785272]
[1724838491867,1e-08,59634.0,59633.0,2.68185272]
[1724838492281,1e-08,59634.0,59633.0,2.69585272]
[1724838492519,1e-08,59634.0,59633.0,2.72618828]
[1724838493363,1e-08,59637.0,59636.0,1.63109178]
[1724838493574,1e-08,59637.0,59636.0,2.35064258]
[1724838493812,1e-08,59637.0,59636.0,2.36312728]
[1724838493990,1e-08,59637.0,59636.0,2.69849428]
[1724838494966,1e-08,59637.0,59636.0,2.68064342]
[1724838495168,1e-08,59637.0,59636.0,2.69848797]
[1724838495349,1e-08,59637.0,59636.0,2.69464342]
[1724838495551,1e-08,59637.0,59636.0,2.69848781]
[1724838495938,1e-08,59637.0,59636.0,2.72648781]
[1724838496201,1e-08,59637.0,59636.0,2.72648313]
[1724838496420,1e-08,59637.0,59636.0,2.69848313]
[1724838496625,1e-08,59637.0,59636.0,2.71248313]
[1724838497903,1e-08,59637.0,59636.0,2.72648313]
[1724838498761,1e-08,59637.0,59636.0,2.7140011]
[1724838499321,1e-08,59637.0,59636.0,2.72647971]
[1724838500163,1e-08,59637.0,59636.0,2.74207784]
[1724838500995,1e-08,59637.0,59636.0,2.71407784]
[1724838501892,1e-08,59637.0,59636.0,2.74207784]
[1724838502098,1e-08,59637.0,59636.0,2.72807784]
[1724838502304,1e-08,59637.0,59636.0,2.96110951]
[1724838502544,1e-08,59637.0,59636.0,2.97510951]
[1724838502771,1e-08,59637.0,59636.0,2.98910951]
[1724838502988,0.01686501,59639.0,59636.0,2.98910951]
[1724838503189,1e-08,59641.0,59640.0,1.416567]
[1724838503434,1e-08,59641.0,59640.0,2.07827274]
[1724838503633,1e-08,59641.0,59640.0,2.45221587]
[1724838503838,1e-08,59641.0,59640.0,2.80751747]
[1724838504192,1e-08,59641.0,59640.0,2.75521683]
[1724838505123,1e-08,59643.0,59642.0,1.52400299]
[1724838505316,1e-08,59643.0,59642.0,2.10304371]
[1724838505525,1e-08,59643.0,59642.0,2.14894281]
[1724838505729,1e-08,59643.0,59642.0,2.48427716]
[1724838506465,1e-08,59643.0,59642.0,2.14894316]
[1724838506706,0.20410001,59643.0,59642.0,1.94297669]
[1724838506833,0.20410001,59643.0,59642.0,1.54281238]
[1724838507278,1e-08,59643.0,59642.0,2.23242012]
[1724838507483,1e-08,59643.0,59642.0,2.39876186]
[1724838507678,1e-08,59643.0,59642.0,2.41276186]
[1724838507912,1e-08,59643.0,59642.0,2.70980947]
[1724838508113,1e-08,59643.0,59642.0,2.69580947]
[1724838508293,1e-08,59643.0,59642.0,2.75180947]
[1724838508529,1e-08,59643.0,59642.0,2.73780947]
[1724838508900,1e-08,59643.0,59642.0,2.72380741]
[1724838509105,1e-08,59643.0,59642.0,2.74092311]
[1724838509395,1e-08,59643.0,59642.0,2.6623909]
[1724838510340,1e-08,59643.0,59642.0,2.78661708]
[1724838510549,1e-08,59643.0,59642.0,2.77261708]
[1724838510756,1e-08,59643.0,59642.0,2.6763909]
[1724838511056,1e-08,59643.0,59642.0,2.6623909]
[1724838511253,1e-08,59643.0,59642.0,2.80060888]
[1724838511458,1e-08,59643.0,59642.0,2.78502463]
[1724838511676,1e-08,59643.0,59642.0,2.78702463]
[1724838512118,1e-08,59643.0,59642.0,2.78696749]
[1724838512330,5.7e-07,59645.0,59644.0,0.007]
[1724838512539,5.7e-07,59645.0,59644.0,0.71168206]
[1724838512760,5.7e-07,59645.0,59644.0,1.48232606]
[1724838512961,5.7e-07,59645.0,59644.0,2.05683863]
[1724838513163,5.7e-07,59645.0,59644.0,2.37433495]
[1724838513427,5.7e-07,59645.0,59644.0,2.37968658]
[1724838513649,5.7e-07,59645.0,59644.0,2.3901509]
[1724838513898,0.05020244,59653.0,59651.0,1.846056]
[1724838514137,0.1601,59667.0,59666.0,0.172599]
[1724838514138,0.0506,59667.0,59666.0,0.172599]
[1724838514337,0.2547,59667.0,59666.0,1.19101838]
[1724838514540,0.0506,59667.0,59666.0,2.09901638]
[1724838514755,1.6e-07,59669.0,59668.0,1.178158]
[1724838514967,1.6e-07,59669.0,59668.0,2.6357099]
[1724838515232,1.6e-07,59669.0,59668.0,2.98336222]
[1724838515437,1.6e-07,59669.0,59668.0,2.85946811]
[1724838515606,1.6e-07,59669.0,59668.0,3.00582428]
[1724838515808,1.6e-07,59669.0,59668.0,2.94068377]
[1724838516012,1.6e-07,59669.0,59668.0,2.04566473]
[1724838516223,1.6e-07,59669.0,59668.0,1.31740619]
[1724838516470,1.6e-07,59669.0,59668.0,1.65259419]
[1724838516703,0.03353375,59669.0,59668.0,1.6401461]
[1724838516924,0.02627231,59669.0,59668.0,1.3049581]
[1724838517135,0.02627231,59669.0,59668.0,1.287158]
[1724838517362,0.03353375,59669.0,59668.0,1.301158]
[1724838517589,0.14533375,59669.0,59668.0,1.287158]
[1724838517833,0.14533375,59669.0,59668.0,1.187158]
[1724838518035,0.14533375,59669.0,59668.0,1.173158]
[1724838518180,0.14533375,59669.0,59668.0,1.201158]
[1724838518754,0.14533375,59669.0,59668.0,1.187158]
[1724838518904,0.14533375,59669.0,59668.0,1.173158]
[1724838519125,0.14533375,59669.0,59668.0,1.187158]
[1724838519522,0.14533375,59669.0,59668.0,1.273158]
[1724838520283,0.14533375,59669.0,59668.0,1.282158]
[1724838520475,0.14533375,59669.0,59668.0,0.94697]
[1724838520701,0.14533375,59669.0,59668.0,1.273158]
[1724838521061,0.14533375,59669.0,59668.0,1.299158]
[1724838521459,0.14533375,59669.0,59668.0,1.273158]
[1724838521765,0.14533375,59669.0,59668.0,1.285158]
[1724838521967,0.14533375,59669.0,59668.0,1.296158]
[1724838522099,0.14533375,59669.0,59668.0,1.284158]
[1724838522300,0.14533375,59669.0,59668.0,0.96297]
[1724838522705,0.14533375,59669.0,59668.0,0.94897]
[1724838523123,0.14533375,59669.0,59668.0,0.93797]
[1724838523324,0.14533375,59669.0,59668.0,0.95197]
[1724838523556,0.14533375,59669.0,59668.0,1.287158]
[1724838524028,0.14533375,59669.0,59668.0,1.273158]
[1724838524316,0.03353375,59669.0,59668.0,1.629346]
[1724838524436,0.03353375,59669.0,59668.0,1.64716013]
[1724838524437,0.02709031,59669.0,59668.0,1.64716013]
[1724838524637,1e-08,59671.0,59668.0,1.62616013]
[1724838524856,1e-08,59671.0,59670.0,1.508292]
[1724838525076,1e-08,59671.0,59670.0,1.608292]
[1724838525747,1e-08,59671.0,59670.0,1.273116]
[1724838525964,0.00732585,59671.0,59670.0,1.273116]
[1724838526182,0.00732585,59671.0,59670.0,1.287116]
[1724838526892,0.00732585,59671.0,59670.0,1.622292]
[1724838527114,1e-08,59671.0,59670.0,1.622292]
[1724838527326,1e-08,59671.0,59670.0,1.624292]
[1724838527544,1e-08,59671.0,59670.0,1.622292]
[1724838528384,1e-08,59671.0,59670.0,1.624292]
[1724838528586,1e-08,59671.0,59670.0,1.622292]
[1724838528834,1e-08,59671.0,59670.0,1.636292]
[1724838529251,1e-08,59671.0,59670.0,1.638292]
[1724838529427,1e-08,59671.0,59670.0,1.636292]
[1724838529614,1e-08,59671.0,59670.0,1.6541082]
[1724838530760,1e-08,59671.0,59670.0,1.6561082]
[1724838531147,1e-08,59671.0,59670.0,1.6541082]
[1724838532638,6e-08,59673.0,59671.0,0.005]
[1724838532843,6e-08,59673.0,59672.0,0.49068911]
[1724838533087,6e-08,59673.0,59672.0,1.32833246]
[1724838533294,6e-08,59673.0,59672.0,2.13303207]
[1724838533503,6e-08,59673.0,59672.0,2.39007359]
[1724838533652,6e-08,59673.0,59672.0,0.45297541]
[1724838533653,0.21190006,59673.0,59672.0,0.45297541]
[1724838533856,0.21190006,59673.0,59672.0,0.602747]
[1724838534168,0.2192563,59673.0,59672.0,0.837912]
[1724838534689,0.2192563,59673.0,59670.0,0.028]
[1724838534690,0.1081,59672.0,59670.0,0.014]
[1724838534899,0.1038,59671.0,59668.0,0.167592]
[1724838535102,0.1038,59671.0,59668.0,0.167591]
[1724838535103,0.1081,59670.0,59668.0,0.167591]
[1724838535311,0.11545624,59670.0,59668.0,0.167591]
[1724838535751,0.11545624,59670.0,59669.0,0.167591]
[1724838535958,0.11545624,59670.0,59667.0,0.335192]
[1724838536160,0.11545624,59670.0,59666.0,0.335196]
[1724838536351,0.11545624,59670.0,59668.0,0.007]
[1724838536558,0.11545624,59670.0,59669.0,0.167591]
[1724838536922,0.11545624,59670.0,59669.0,0.1684908]
[1724838537117,0.14173118,59670.0,59669.0,0.1684908]
[1724838537346,0.14173118,59670.0,59669.0,0.5036728]
[1724838537689,0.14173118,59670.0,59669.0,0.6036728]
[1724838537887,0.14173118,59670.0,59669.0,0.6096728]
[1724838538632,0.14173118,59670.0,59669.0,0.2814908]
[1724838539237,0.14173118,59670.0,59669.0,0.1138998]
[1724838539415,0.24813118,59670.0,59669.0,0.0068998]
[1724838539650,0.75089518,59670.0,59669.0,0.0068998]
[1724838539850,0.75089518,59670.0,59669.0,0.0138998]
[1724838540051,0.75089518,59670.0,59669.0,0.0068998]
[1724838540250,0.24813118,59670.0,59669.0,0.0068998]